bitfinex/quotes_ETHUSD_20250123
["timestamp","ask_amount","ask_price","bid_price","bid_amount"]
[1737596820713,3.91568,3232.5,3231.8,3.09425]
[1737596820938,3.91568,3232.5,3231.7,3.09426]
[1737596821107,0.8221,3232.5,3231.7,0.29]
[1737596821310,3.09369,3232.4,3231.7,3.09434]
[1737596821636,3.91568,3232.5,3231.8,3.09419]
[1737596821852,0.8221,3232.5,3231.8,3.09423]
[1737596822160,3.91494,3233.3,3232.0,5.1]
[1737596822445,3.91441,3233.9,3232.9,3.09318]
[1737596822612,0.60822864,3233.7,3233.2,3.09288]
[1737596822805,3.70065864,3233.7,3233.0,3.09307]
[1737596823321,3.70065864,3233.7,3233.1,3.093]
[1737596823526,3.70065864,3233.7,3233.1,3.09297]
[1737596823907,0.60822864,3233.7,3233.1,3.09297]
[1737596824540,1.0604985,3233.7,3232.8,0.1]
[1737596824715,0.60822864,3233.7,3232.8,3.19326]
[1737596825039,3.09253,3233.6,3232.8,3.19326]
[1737596825244,3.86153,3234.3,3233.5,3.09257]
[1737596825564,0.7696,3234.3,3233.8,3.09227]
[1737596825709,0.61072289,3234.1,3233.7,3.09234]
[1737596826221,3.09228,3233.9,3233.8,0.03221011]
[1737596826408,1.05794218,3234.1,3233.1,0.1]
[1737596826606,3.86224,3233.5,3232.9,0.29]
[1737596826807,3.09244,3233.7,3232.9,3.09318]
[1737596827016,3.09244,3233.7,3233.0,3.38302]
[1737596827214,0.7696,3233.9,3233.0,0.29]
[1737596827447,3.09233,3233.8,3233.0,0.29]
[1737596827648,3.09262,3233.5,3233.0,0.29]
[1737596828522,3.478623,3233.7,3233.0,0.29]
[1737596828727,3.09243,3233.7,3233.1,0.29]
[1737596829849,3.09243,3233.7,3233.1,3.38299]
[1737596830361,0.61430955,3233.4,3233.1,0.29]
[1737596832916,0.61430955,3233.4,3232.9,3.09318]
[1737596833133,0.61430955,3233.4,3233.0,0.305]
[1737596833749,0.61430955,3233.4,3232.9,3.09318]
[1737596833959,0.61430955,3233.4,3232.9,3.39818]
[1737596834546,0.61430955,3233.4,3232.9,0.305]
[1737596834786,3.09302,3233.1,3232.9,0.305]
[1737596834920,3.09321,3232.9,3232.3,0.405]
[1737596835121,3.09321,3232.9,3232.3,3.49875]
[1737596835323,3.09321,3232.9,3232.3,0.405]
[1737596835634,3.09302,3233.1,3232.3,0.1]
[1737596835956,3.09302,3233.1,3232.3,0.305]
[1737596835957,3.0934,3232.7,3232.3,0.305]
[1737596836321,3.70439007,3232.6,3232.3,0.305]
[1737596836658,3.70436007,3232.6,3232.4,0.03233235]
[1737596836869,0.7696,3232.4,3231.9,0.4728066]
[1737596837360,0.7696,3232.4,3232.0,0.03254119]
[1737596837521,3.86335,3232.4,3232.0,0.03254119]
[1737596838049,3.09388,3232.2,3232.0,0.03254119]
[1737596838357,3.09396,3232.1,3232.0,0.03254119]
[1737596838936,3.86356,3232.1,3232.0,0.03254119]
[1737596839136,3.86356,3232.1,3231.9,0.1678066]
[1737596839379,3.09405,3232.0,3231.9,0.1678066]
[1737596839574,3.85107852,3232.0,3231.9,0.1678066]
[1737596839776,0.75702852,3232.0,3231.9,0.1678066]
[1737596839962,4.47630516,3232.1,3231.9,0.1678066]
[1737596840164,3.09405,3232.0,3231.9,0.19901745]
[1737596840685,1.38233516,3232.1,3231.9,0.19901745]
[1737596841386,4.47634516,3232.1,3231.9,0.19901745]
[1737596841577,3.09405,3232.0,3231.9,0.19901745]
[1737596841761,1.82996968,3232.1,3231.9,0.19901745]
[1737596841963,4.92395968,3232.1,3231.9,0.19901745]
[1737596842325,1.82996968,3232.1,3231.9,0.19901745]
[1737596842487,1.06036968,3232.1,3231.9,0.19901745]
[1737596842666,0.61273516,3232.1,3231.9,0.19901745]
[1737596843068,0.61273516,3232.1,3231.9,3.29314745]
[1737596843903,0.7507,3232.0,3231.0,3.09497]
[1737596844045,0.7507,3231.8,3230.4,3.09557]
[1737596844367,3.09444,3231.6,3230.3,0.305]
[1737596844568,3.09482,3231.2,3230.5,3.09549]
[1737596844776,3.09514,3230.9,3230.1,3.09581]
[1737596845085,3.09514,3230.9,3230.2,3.40076]
[1737596845246,3.09514,3230.9,3230.2,0.255]
[1737596845446,3.09514,3230.9,3230.2,3.35076]
[1737596845667,3.09527,3230.8,3230.2,0.255]
[1737596845983,3.0954,3230.6,3230.1,0.305]
[1737596846214,3.0955,3230.5,3230.1,0.305]
[1737596846421,3.70987174,3230.7,3230.1,3.40087]
[1737596847462,3.70987174,3230.7,3228.3,3.51643765]
[1737596847463,0.55,3230.3,3228.3,3.51643765]
[1737596847662,3.09712,3228.8,3227.6,0.1]
[1737596847915,3.09712,3228.8,3228.4,3.21948773]
[1737596848069,3.12807778,3228.8,3228.4,3.21948773]
[1737596848462,3.09712,3228.8,3228.4,3.21948773]
[1737596848663,4.50118978,3228.8,3228.4,3.21948773]
[1737596850423,4.50118978,3228.8,3226.6,0.305]
[1737596850424,3.09802,3227.9,3226.6,0.305]
[1737596850621,0.03095778,3227.8,3227.3,3.09855]
[1737596850765,0.7537,3228.4,3227.3,3.09855]
[1737596851126,0.03095778,3228.3,3227.4,0.614855]
[1737596851417,3.09777,3228.2,3227.4,0.309855]
[1737596851725,0.7537,3227.7,3226.4,0.305]
[1737596852020,0.7537,3227.7,3226.7,3.09912]
[1737596852021,0.03095778,3227.6,3226.7,3.09912]
[1737596852220,0.03095778,3227.6,3227.1,3.09872]
[1737596852420,0.03095778,3227.6,3227.1,3.0987]
[1737596852631,0.03095778,3227.8,3227.1,3.0987]
[1737596852773,0.03095778,3227.8,3227.1,3.4037]
[1737596852974,3.0982,3227.7,3227.1,0.305]
[1737596853223,3.09871,3227.2,3226.2,0.2988]
[1737596853424,0.03095778,3227.1,3226.5,3.09929]
[1737596853608,0.61736875,3227.2,3226.4,0.03099387]
[1737596853811,0.61736875,3227.2,3226.9,3.09893]
[1737596854122,3.0981,3227.8,3227.1,3.09875]
[1737596854321,0.03095778,3227.7,3227.3,3.09847]
[1737596855019,0.03095778,3227.7,3227.3,3.09852]
[1737596855229,0.8224,3228.3,3227.6,3.09827]
[1737596855431,0.03095778,3228.2,3227.5,3.09837]
[1737596855572,0.8224,3228.3,3227.7,3.09817]
[1737596855773,0.03095778,3228.2,3227.7,0.03005939]
[1737596856078,0.61232707,3227.8,3227.5,0.305]
[1737596856282,0.61232707,3227.8,3227.7,3.09816]
[1737596857083,0.61232707,3227.8,3226.5,2.0]
[1737596857280,0.03095778,3227.7,3226.6,0.4988]
[1737596857508,0.03095778,3227.7,3226.7,0.03098573]
[1737596857705,0.03095778,3227.7,3226.6,0.4988]
[1737596857909,0.03095778,3227.7,3227.1,3.09874]
[1737596858109,0.03095778,3227.7,3227.3,3.09856]
[1737596858723,0.03095778,3227.7,3227.4,3.09843]
[1737596858926,0.8224,3228.3,3227.6,3.09818]
[1737596859122,0.62849637,3227.9,3227.6,3.09818]
[1737596859328,0.8224,3228.3,3227.8,3.09801]
[1737596859623,3.09732,3228.6,3227.9,3.09798]
[1737596860007,3.12838778,3228.5,3227.9,3.09798]
[1737596860209,3.12838778,3228.5,3227.6,3.09827]
[1737596860532,0.62682368,3228.1,3227.7,3.09813]
[1737596860710,0.03095778,3228.0,3227.8,3.09807]
[1737596861270,0.62682368,3228.1,3227.8,3.09807]
[1737596862051,0.62682368,3228.1,3227.1,3.09868]
[1737596862232,3.09817,3227.8,3227.1,3.09873]
[1737596862558,3.09837,3227.6,3226.9,3.40693]
[1737596862763,0.03095778,3227.5,3226.9,3.40693]
[1737596863066,0.03095778,3227.5,3227.0,3.09876]
[1737596863228,0.03095778,3227.5,3227.1,3.09874]
[1737596863628,0.03095778,3227.6,3227.2,3.09864]
[1737596864047,0.03095778,3227.6,3226.9,0.308]
[1737596864365,0.8224,3228.3,3227.8,3.09806]
[1737596864571,0.03095778,3228.2,3227.8,3.09806]
[1737596864899,0.63029633,3228.0,3227.7,3.09817]
[1737596865172,0.63029633,3228.0,3227.7,3.09816]
[1737596867873,0.63029633,3228.0,3227.2,0.0309818]
[1737596868013,0.63029633,3228.0,3227.8,3.09804]
[1737596870568,0.63029633,3228.0,3227.9,3.09798]
[1737596871831,0.7771,3228.6,3228.1,3.09771]
[1737596872066,0.7771,3228.6,3228.1,3.09773]
[1737596872976,0.7771,3228.6,3228.3,3.09757]
[1737596873284,0.7771,3229.0,3228.4,3.09748]
[1737596873431,0.03095778,3228.9,3228.6,3.09723]
[1737596873636,0.60590856,3228.7,3228.5,3.09733]
[1737596874187,0.60590856,3228.7,3228.6,3.09731]
[1737596876332,0.60590856,3228.7,3227.9,3.09791]
[1737596876532,3.87452,3228.5,3227.9,3.09791]
[1737596876734,0.42150556,3228.4,3228.0,3.09789]
[1737596876968,3.09776,3228.2,3227.5,3.09833]
[1737596877272,0.03095778,3228.1,3227.5,3.40633]
[1737596877801,0.03095778,3228.1,3227.5,0.308]
[1737596878088,0.7771,3228.5,3226.9,0.2988]
[1737596878089,3.09771,3228.2,3226.9,0.2988]
[1737596878242,3.09801,3227.9,3227.2,3.09859]
[1737596878444,0.34075878,3227.8,3227.3,3.09854]
[1737596878760,0.34075878,3227.8,3227.3,3.09847]
[1737596878965,0.34075878,3227.8,3227.2,3.40659]
[1737596879380,0.03095778,3227.8,3227.4,3.09846]
[1737596879698,3.87491,3228.1,3227.4,3.09846]
[1737596880185,0.609397,3227.8,3227.4,3.09846]
[1737596880599,0.03095778,3227.7,3227.4,3.09846]
[1737596881612,0.03095778,3227.7,3227.3,0.308]
[1737596881970,0.40480326,3227.7,3227.3,0.308]
[1737596882170,0.40480326,3227.7,3227.1,0.308]
[1737596882171,3.50298326,3227.7,3227.1,0.308]
[1737596882406,0.40480326,3227.7,3227.1,0.308]
[1737596882602,0.40480326,3227.7,3227.1,3.40666]
[1737596882873,0.41123703,3227.6,3227.4,3.09846]
[1737596883079,0.03095778,3227.5,3227.4,3.09846]
[1737596883281,0.03095778,3227.7,3227.2,6.19724]
[1737596883493,0.03095778,3227.7,3227.2,3.09859]
[1737596883714,0.03095778,3227.7,3227.1,0.308]
[1737596883715,0.609397,3227.8,3227.6,3.09827]
[1737596884329,0.7771,3228.1,3227.8,3.098]
[1737596884528,0.7771,3228.5,3227.7,3.09818]
[1737596884732,0.387443,3228.4,3227.9,3.09791]
[1737596884937,0.387443,3228.4,3227.9,3.0979]
[1737596885134,0.61370823,3228.0,3227.7,3.09811]
[1737596885409,0.61370823,3228.0,3227.9,3.09798]
[1737596889750,0.03095778,3228.4,3228.3,3.0976]
[1737596890049,0.7771,3228.9,3228.3,3.0976]
[1737596890050,0.03095778,3228.8,3228.5,3.09738]
[1737596890591,0.7771,3228.9,3228.5,3.09738]
[1737596890792,0.387409,3228.8,3228.5,3.09738]
[1737596891323,0.61595829,3228.6,3228.5,3.09738]
[1737596892603,0.7771,3228.5,3227.7,0.294]
[1737596892796,0.7771,3228.5,3228.1,3.09771]
[1737596893012,0.61595829,3228.6,3228.3,3.09759]
[1737596893528,0.61595829,3228.6,3228.2,3.09769]
[1737596894243,0.61595829,3228.6,3228.4,3.0975]
[1737596895152,0.61595829,3228.6,3228.2,3.09762]
[1737596895655,0.7771,3228.5,3227.6,0.2988]
[1737596895829,0.7771,3228.5,3227.3,3.09848]
[1737596895830,3.09762,3228.3,3227.5,3.09831]
[1737596896009,3.12865778,3228.2,3227.5,3.09831]
[1737596896329,3.09784,3228.1,3227.5,3.09831]
[1737596896528,0.03095778,3228.0,3227.5,3.09831]
[1737596896831,0.7771,3228.9,3228.1,3.09779]
[1737596897035,0.7771,3228.9,3228.5,3.09741]
[1737596897236,3.0968,3229.2,3228.5,3.09741]
[1737596897397,3.8739,3229.2,3228.5,3.09741]
[1737596897820,0.63432199,3228.7,3228.6,3.09731]
[1737596898027,3.91891945,3229.9,3229.7,3.09624]
[1737596898334,0.62428976,3229.8,3229.5,3.09638]
[1737596898509,3.14181945,3229.9,3229.8,3.09616]
[1737596898897,3.14181945,3229.9,3229.8,3.715402]
[1737596899097,2.82272841,3229.9,3229.8,4.014202]
[1737596899298,2.82272841,3229.9,3229.8,3.39496]
[1737596900347,2.44783478,3229.9,3229.8,3.97591972]
[1737596900554,4.78e-06,3229.9,3229.8,3.97591972]
[1737596900715,4.78e-06,3229.9,3229.7,3.51643765]
[1737596900716,1.27450607,3231.0,3230.4,3.39439]
[1737596900915,1.27450607,3231.0,3230.9,3.09511]
[1737596901102,1.27450607,3231.0,3230.9,3.40411]
[1737596902130,1.27450607,3231.0,3230.9,38.70291]
[1737596902329,1.27450607,3231.0,3230.9,41.80493562]
[1737596903026,1.27450607,3231.0,3230.9,35.309]
[1737596903329,1.27450607,3231.0,3230.2,3.09576]
[1737596903330,3.09511,3230.9,3230.3,0.309]
[1737596903530,3.12617778,3230.8,3230.3,0.309]
[1737596903852,0.03095778,3230.8,3230.3,0.309]
[1737596904259,0.03095778,3230.8,3230.2,3.40477]
[1737596904556,0.63013613,3230.6,3230.2,0.309]
[1737596904741,0.63013613,3230.6,3230.1,3.09584]
[1737596904945,0.63013613,3230.6,3230.2,0.309]
[1737596905452,0.03095778,3230.5,3230.1,0.309]
[1737596905656,0.63013613,3230.6,3230.1,0.309]
[1737596905820,0.03095778,3230.5,3230.1,0.309]
[1737596906555,0.03095778,3230.5,3230.0,0.309]
[1737596907057,0.8159,3230.4,3230.0,0.309]
[1737596907217,0.03095778,3230.3,3230.0,0.309]
[1737596908357,0.8159,3230.4,3230.0,0.309]
[1737596908536,0.8159,3230.4,3230.0,3.40497]
[1737596908950,0.8159,3230.4,3230.1,35.0]
[1737596909461,0.63013613,3230.6,3230.3,3.09567]
[1737596910033,0.63013613,3230.6,3230.4,35.309]
[1737596910739,0.63013613,3230.6,3230.4,0.309]
[1737596912764,0.63013613,3230.6,3230.2,0.309]
[1737596912959,0.63013613,3230.6,3230.2,35.309]
[1737596913164,0.63013613,3230.6,3230.3,3.09567]
[1737596913567,0.63013613,3230.6,3230.3,3.09561]
[1737596913787,0.63013613,3230.6,3230.2,35.309]
[1737596913945,0.63013613,3230.6,3230.2,38.40478]
[1737596915472,0.63013613,3230.6,3230.3,3.09565]
[1737596917871,0.03095778,3230.5,3230.2,35.0]
[1737596918069,0.03095778,3230.5,3229.7,0.309]
[1737596918070,0.8168,3230.4,3229.7,0.309]
[1737596918396,3.12665778,3230.3,3229.7,0.309]
[1737596918680,3.09579,3230.2,3229.8,35.0]
[1737596918976,0.03095778,3230.1,3229.8,35.0]
[1737596919133,0.03095778,3230.2,3229.8,35.0]
[1737596919499,0.8168,3230.4,3229.8,38.09611]
[1737596919792,0.8168,3230.4,3229.8,38.40511]
[1737596919958,0.03095778,3230.3,3229.8,38.40511]
[1737596920572,0.6093089,3229.9,3229.8,35.309]
[1737596920775,0.6093089,3229.9,3229.8,35.0]
[1737596920979,0.8168,3229.8,3229.5,0.309]
[1737596921491,0.8168,3229.8,3229.6,35.0]
[1737596921688,0.8168,3229.8,3229.2,3.0967]
[1737596921689,0.03095778,3229.7,3229.2,3.0967]
[1737596921874,3.09683,3229.2,3228.5,3.09739]
[1737596922082,0.8168,3229.1,3228.5,3.946009]
[1737596922278,0.03095778,3229.0,3228.6,35.0]
[1737596922454,3.0971,3228.9,3228.6,35.0]
[1737596922785,0.03095778,3228.8,3228.6,35.0]
[1737596922988,0.15096278,3229.8,3228.6,35.0]
[1737596922989,0.8168,3229.8,3229.1,3.09683]
[1737596923301,0.03095778,3229.7,3229.1,3.09683]
[1737596923453,3.913,3229.8,3229.1,3.09683]
[1737596923650,3.913,3229.8,3229.2,3.09672]
[1737596924065,3.09628,3229.7,3229.0,3.09687]
[1737596924267,0.63314734,3229.3,3229.0,3.09687]
[1737596924486,0.63314734,3229.3,3229.0,3.40965371]
[1737596924687,0.63314734,3229.3,3229.0,0.31278371]
[1737596924956,0.63314734,3229.3,3229.1,3.09681]
[1737596925291,3.09768,3228.3,3227.6,3.09825]
[1737596925506,0.8168,3228.1,3227.4,0.6318]
[1737596925656,0.8168,3228.1,3227.6,3.09819]
[1737596926389,0.8168,3228.1,3227.7,3.09811]
[1737596926549,0.03095778,3228.2,3227.8,3.09808]
[1737596926757,3.09724,3228.7,3228.1,3.09779]
[1737596927259,3.91392,3228.8,3228.2,3.09767]
[1737596927759,3.91392,3228.8,3228.3,35.0]
[1737596927953,0.61128691,3228.4,3228.3,35.0]
[1737596928159,3.09664,3229.4,3228.4,3.09745]
[1737596928160,0.8168,3229.1,3228.4,3.09745]
[1737596928513,0.8168,3229.1,3228.5,3.09738]
[1737596928717,3.91365,3229.1,3228.5,3.09738]
[1737596928855,0.62652109,3228.8,3228.6,35.0]
[1737596929071,3.91365,3229.1,3228.6,35.0]
[1737596929072,0.8168,3229.1,3228.6,38.09731]
[1737596929326,3.09658,3229.4,3228.7,3.09712]
[1737596929532,0.62670687,3229.1,3228.7,6.19914562]
[1737596929727,0.62670687,3229.1,3228.8,3.09707]
[1737596930285,0.03095778,3229.4,3229.0,3.0969]
[1737596930515,3.09636,3229.6,3229.0,3.0969]
[1737596930675,0.61978302,3229.3,3229.1,3.09683]
[1737596931575,3.91306,3229.7,3229.1,3.09683]
[1737596931772,0.61693458,3229.4,3229.2,3.09667]
[1737596932308,0.61693458,3229.4,3228.9,3.09702]
[1737596932507,0.03095778,3229.3,3228.7,6.19921562]
[1737596932806,0.03095778,3229.3,3228.7,3.10202562]
[1737596932972,3.71352458,3229.4,3228.8,3.09703]
[1737596933332,0.03095778,3229.3,3228.8,6.19406]
[1737596933537,3.71352458,3229.4,3228.8,3.09703]
[1737596933770,0.61693458,3229.4,3228.9,3.09702]
[1737596933933,0.8168,3230.0,3229.2,0.2988]
[1737596934135,0.8168,3230.7,3229.3,0.58096177]
[1737596934472,0.62362222,3230.4,3229.5,0.2988]
[1737596934634,3.91274,3230.1,3229.0,3.09686]
[1737596934984,1.44042222,3230.4,3230.1,3.09587]
[1737596935276,0.8168,3230.8,3230.4,3.09557]
[1737596935775,0.61903995,3230.9,3230.6,3.09532]
[1737596935915,0.61903995,3230.9,3230.4,3.12654393]
[1737596936278,0.61903995,3230.9,3230.5,3.09547]
[1737596937050,0.61903995,3230.9,3230.6,3.09538]
[1737596937450,0.61903995,3230.9,3230.3,0.2988]
[1737596937656,0.61903995,3230.9,3230.5,3.09548]
[1737596937815,0.61903995,3230.9,3230.3,0.2988]
[1737596938022,0.8168,3231.5,3230.5,2.0]
[1737596938239,0.62988907,3231.4,3231.2,3.09481]
[1737596938646,0.62988907,3231.4,3231.1,3.09485]
[1737596939324,0.62988907,3231.4,3231.1,3.09491]
[1737596939656,3.91169,3231.2,3230.8,35.0]
[1737596939832,3.09494,3231.1,3230.8,35.0]
[1737596940160,0.8168,3231.2,3230.7,3.09529]
[1737596941273,0.62988907,3231.4,3230.8,3.0952]
[1737596941455,0.62988907,3231.4,3231.0,3.09493]
[1737596941649,0.8168,3231.6,3231.1,3.09488]
[1737596941873,0.60543397,3231.6,3231.3,3.09463]
[1737596942193,1.236883,3232.5,3231.8,3.09416]
[1737596942353,1.85538033,3232.5,3232.1,3.09393]
[1737596942562,0.8168,3232.6,3232.1,3.09393]
[1737596942756,0.8168,3232.6,3232.1,38.09393]
[1737596943080,1.42211015,3232.6,3232.1,38.09393]
[1737596943245,0.60531015,3232.6,3232.2,3.12471687]
[1737596943440,0.03095778,3232.5,3232.1,35.0]
[1737596943646,3.91066,3232.2,3231.8,0.366]
[1737596943841,0.03095778,3232.1,3231.8,0.366]
[1737596944084,0.8168,3232.2,3231.8,0.366]
[1737596944666,0.8168,3232.2,3231.8,3.80927817]
[1737596944868,0.7724,3232.5,3231.9,3.09415]
[1737596945185,0.60531015,3232.6,3232.2,3.09385]
[1737596945345,0.7724,3232.8,3232.4,3.09363]
[1737596945543,0.60445015,3233.1,3232.5,0.03093389]
[1737596945774,0.60445015,3233.1,3232.7,3.09338]
[1737596945954,0.60445015,3233.1,3232.3,2.0]
[1737596945955,0.03095778,3233.0,3232.3,2.0]
[1737596946155,3.12406778,3233.0,3232.3,3.603124]
[1737596946373,3.09324,3232.9,3232.2,3.09384]
[1737596946585,3.0934,3232.7,3231.8,3.80935817]
[1737596946798,3.0934,3232.7,3232.0,3.09401]
[1737596947095,1.37685015,3233.1,3232.1,3.12489658]
[1737596947275,0.7724,3233.4,3232.7,3.09337]
[1737596947448,0.7724,3233.4,3233.0,3.09309]
[1737596947650,3.09259,3233.6,3232.8,0.309337]
[1737596947651,3.09259,3233.6,3232.8,3.43353725]
[1737596947904,3.91605,3233.5,3232.8,3.43353725]
[1737596948103,3.91605,3233.5,3233.1,3.093]
[1737596948104,0.8234,3233.5,3233.1,3.093]
[1737596948320,0.8234,3233.5,3233.0,3.0931]
[1737596948529,0.8234,3233.5,3233.0,3.43643673]
[1737596948675,1.45352536,3233.5,3233.0,3.43643673]
[1737596948874,2.059742,3234.0,3233.1,0.03092779]
[1737596949196,3.0923,3233.9,3233.2,3.09291]
[1737596949385,3.0923,3233.9,3233.3,0.03092502]
[1737596949582,0.60983266,3233.8,3233.3,0.34330852]
[1737596949997,0.60983266,3233.8,3233.3,0.3123835]
[1737596950203,3.09263,3233.5,3232.9,3.09318]
[1737596950398,3.09255,3233.6,3232.9,3.09318]
[1737596950609,0.03095778,3233.7,3232.9,3.09318]
[1737596950900,3.70220266,3233.8,3233.2,3.09289]
[1737596951107,0.60983266,3233.8,3233.4,3.09265]
[1737596951405,0.60983266,3233.8,3233.3,3.1236865]
[1737596951636,0.60983266,3233.8,3233.4,3.09271]
[1737596951975,3.09261,3233.6,3233.0,0.51241069]
[1737596952171,3.09261,3233.6,3233.0,3.60548069]
[1737596952370,3.09261,3233.6,3233.0,0.51241069]
[1737596952571,3.09261,3233.6,3232.9,3.09319]
[1737596953012,0.03095778,3233.7,3233.0,3.09301]
[1737596953193,3.12338778,3233.7,3233.0,3.09301]
[1737596953388,0.60983266,3233.8,3233.4,3.09271]
[1737596953603,0.8234,3234.0,3233.6,3.09247]
[1737596953792,0.8234,3234.0,3233.6,0.62159334]
[1737596954196,0.8234,3234.0,3233.5,3.09254]
[1737596955414,1.45175059,3234.0,3233.5,3.09254]
[1737596956023,0.8234,3232.7,3231.9,2.0]
[1737596956204,3.9168,3232.7,3232.1,3.09395]
[1737596956408,0.03095778,3232.6,3231.8,0.64792817]
[1737596956645,3.09377,3232.3,3231.8,0.71512817]
[1737596956845,3.09377,3232.3,3231.8,0.366]
[1737596957062,3.70568864,3232.3,3231.8,0.366]
[1737596958030,3.09387,3232.2,3231.8,0.366]
[1737596958435,3.70573864,3232.3,3231.8,0.366]
[1737596959803,0.61191864,3232.3,3231.8,0.366]
[1737596959980,3.09435,3231.7,3231.3,0.366]
[1737596960174,3.09435,3231.7,3231.0,3.39375]
[1737596960175,3.0943,3231.8,3231.1,0.366]
[1737596960487,3.09454,3231.5,3231.1,0.366]
[1737596960664,3.09454,3231.5,3231.0,0.6648]
[1737596960995,3.09454,3231.5,3231.0,1.04387845]
[1737596961284,3.09447,3231.6,3231.0,1.04387845]
[1737596961987,3.09447,3231.6,3231.0,3.7598]
[1737596962693,3.09447,3231.6,3231.0,3.79074558]
[1737596963492,0.7954,3232.0,3231.4,3.09455]
[1737596963646,3.09378,3232.3,3231.4,3.12553242]
[1737596963980,3.09378,3232.3,3231.7,3.09433]
[1737596964281,0.61453273,3232.2,3231.8,0.03094049]
[1737596964490,0.7954,3232.8,3232.0,3.09399]
[1737596964792,0.6180592,3232.5,3231.8,3.39297]
[1737596965097,3.7116992,3232.5,3231.8,3.39297]
[1737596965577,0.6180592,3232.5,3231.8,3.39297]
[1737596965894,0.6180592,3232.5,3231.9,3.09409]
[1737596966593,0.6180592,3232.5,3231.8,0.2988]
[1737596966890,0.6180592,3232.5,3231.8,3.39303]
[1737596968666,0.7954,3232.4,3231.8,3.39303]
[1737596969394,0.7954,3232.4,3231.5,0.2988]
[1737596969395,0.03095778,3232.3,3231.5,0.2988]
[1737596969598,0.03095778,3232.3,3230.9,2.0]
[1737596969599,3.09397,3232.1,3231.2,0.366]
[1737596969783,0.03095778,3232.0,3231.1,3.39365]
[1737596969986,0.7954,3232.4,3231.4,0.55]
[1737596970312,0.7954,3232.4,3232.0,3.09405]
[1737596970663,0.7954,3232.4,3232.1,3.09394]
[1737596970813,0.7954,3232.4,3232.0,3.09398]
[1737596970974,0.7954,3232.4,3232.1,3.09395]
[1737596971334,0.7954,3232.4,3232.3,3.09377]
[1737596971507,3.87114,3233.1,3232.3,3.09377]
[1737596971822,3.87114,3233.1,3231.7,5.09429]
[1737596971823,3.09388,3232.2,3231.3,3.39343]
[1737596971974,0.7781,3232.3,3231.5,3.09453]
[1737596971975,0.03095778,3232.1,3231.5,3.09453]
[1737596972169,0.03095778,3233.4,3231.6,0.03094146]
[1737596972403,3.8714,3232.8,3232.1,3.09394]
[1737596972571,3.09341,3232.7,3231.9,5.12503636]
[1737596972776,0.62989982,3232.4,3231.9,5.12503636]
[1737596973420,3.72357982,3232.4,3231.8,0.366]
[1737596973708,0.7781,3232.1,3231.2,3.09481]
[1737596973885,3.87206,3232.1,3231.3,0.366]
[1737596974284,3.09422,3231.9,3231.3,0.366]
[1737596974501,3.09422,3231.9,3231.4,0.0309427]
[1737596976514,3.09377,3232.3,3231.7,3.09432]
[1737596976688,0.61882832,3232.3,3231.6,0.03093829]
[1737596976897,0.61882832,3232.3,3231.3,0.366]
[1737596976898,3.09422,3231.9,3231.3,0.366]
[1737596977095,3.09431,3231.8,3231.2,3.09481]
[1737596977300,3.09438,3231.7,3231.1,3.09491]
[1737596977511,3.12510778,3231.9,3231.1,3.670881]
[1737596977712,0.62996167,3231.7,3231.2,3.12575451]
[1737596978004,3.72434167,3231.7,3231.1,0.575971]
[1737596978331,0.62996167,3231.7,3231.1,3.670801]
[1737596978830,0.62996167,3231.7,3231.1,3.70174416]
[1737596979019,0.62996167,3231.7,3231.1,0.941971]
[1737596979228,0.62996167,3231.7,3231.2,0.03094322]
[1737596979909,3.09452,3231.6,3231.1,0.39694515]
[1737596980339,3.09452,3231.6,3231.1,0.03094515]
[1737596980636,3.0953,3230.7,3230.6,2.0]
[1737596980798,3.8609,3230.7,3230.6,2.0]
[1737596981000,3.8609,3230.7,3229.6,5.18018731]
[1737596981201,0.7656,3230.5,3229.6,3.18018731]
[1737596981404,3.86186,3229.7,3229.6,3.18018731]
[1737596981710,3.09731,3228.6,3228.5,0.03096416]
[1737596981926,3.86301,3228.5,3228.4,2.0]
[1737596982107,3.86301,3228.5,3227.2,0.03097212]
[1737596982108,0.7656,3228.5,3227.2,0.03097212]
[1737596982308,3.09846,3227.4,3227.3,0.20309721]
[1737596982525,3.09821,3227.7,3227.3,0.20309721]
[1737596982733,3.71341655,3227.8,3227.3,0.20309721]
[1737596983046,3.86485,3226.6,3226.4,2.0]
[1737596983264,0.61532655,3227.8,3225.4,2.1678066]
[1737596983409,3.09924,3226.6,3225.4,2.1678066]
[1737596983607,3.09934,3226.5,3225.4,2.1678066]
[1737596983808,3.09886,3227.0,3225.5,0.24777779]
[1737596984120,0.62237865,3227.0,3226.1,3.0997]
[1737596984308,3.0978,3228.1,3226.8,3.09901]
[1737596984515,0.03095778,3228.6,3226.8,3.41998952]
[1737596984705,0.60641863,3228.3,3227.0,2.0]
[1737596984905,0.60641863,3228.3,3227.1,3.54087309]
[1737596985110,3.09658,3229.4,3227.1,3.54087309]
[1737596985111,3.12772778,3229.2,3227.4,2.0]
[1737596985333,0.03095778,3229.7,3228.1,3.09775]
[1737596985506,3.09664,3229.3,3228.2,3.12864231]
[1737596985710,0.61580024,3229.5,3228.3,3.405]
[1737596985947,3.09597,3230.0,3228.6,2.0]
[1737596986248,0.61753524,3229.8,3228.6,2.0]
[1737596986448,0.03095778,3229.7,3228.6,2.0]
[1737596986609,0.03095778,3229.7,3228.1,2.0]
[1737596986967,0.03095778,3229.7,3227.7,3.09814]
[1737596986968,3.09705,3228.9,3227.9,0.405]
[1737596987116,6.28524379,3228.8,3227.8,3.09807]
[1737596987311,0.03095778,3228.7,3227.7,0.405]
[1737596987635,3.09733,3228.6,3227.7,0.405]
[1737596987813,0.03095778,3228.5,3227.5,3.12933595]
[1737596988164,0.03095778,3228.5,3227.6,0.423]
[1737596988317,3.09752,3228.4,3227.6,0.423]